bitfinex/quotes_BTCUSD_20250308
["timestamp","ask_amount","ask_price","bid_price","bid_amount"]
[1741393527424,0.00854249,86917.0,86908.0,0.011506]
[1741393527600,0.011504,86919.0,86909.0,0.11604]
[1741393527807,0.011504,86919.0,86909.0,0.1171905]
[1741393529403,0.011504,86919.0,86909.0,0.3473145]
[1741393529627,0.011504,86919.0,86909.0,0.346164]
[1741393529847,0.011504,86919.0,86910.0,0.230122]
[1741393530853,0.011504,86919.0,86909.0,0.346164]
[1741393531912,0.011504,86919.0,86910.0,0.001]
[1741393532317,0.011505,86917.0,86909.0,0.11604]
[1741393532526,0.011505,86913.0,86909.0,0.11604]
[1741393532721,0.011505,86916.0,86909.0,0.11604]
[1741393533144,0.011505,86916.0,86909.0,0.1171905]
[1741393534086,0.011505,86916.0,86909.0,0.1181905]
[1741393534866,0.011505,86916.0,86909.0,0.11704]
[1741393535068,0.011505,86916.0,86909.0,0.1183603]
[1741393535253,0.011505,86915.0,86909.0,0.1183603]
[1741393535455,0.011505,86915.0,86909.0,0.1172098]
[1741393535856,0.011505,86915.0,86909.0,0.1162098]
[1741393536076,0.011505,86915.0,86909.0,0.11736031]
[1741393536516,0.011505,86917.0,86909.0,0.34748431]
[1741393536737,0.011505,86917.0,86909.0,0.3463338]
[1741393536929,0.011505,86917.0,86909.0,0.1162098]
[1741393537238,0.011505,86917.0,86909.0,0.3474853]
[1741393537400,0.011505,86917.0,86909.0,0.3483348]
[1741393537593,0.011505,86917.0,86909.0,0.1182098]
[1741393537800,0.011505,86917.0,86909.0,0.1173603]
[1741393538260,0.011505,86917.0,86909.0,0.3484853]
[1741393538433,0.0003396,86919.0,86913.0,0.230112]
[1741393538736,0.0003396,86919.0,86911.0,0.23012]
[1741393538940,0.0118436,86919.0,86911.0,0.23012]
[1741393539346,0.0003396,86919.0,86912.0,0.230117]
[1741393539542,0.0003396,86919.0,86918.0,0.241606]
[1741393539775,0.0003396,86919.0,86916.0,0.241611]
[1741393539947,0.0003396,86919.0,86915.0,0.230104]
[1741393540121,0.0003396,86919.0,86914.0,0.011505]
[1741393540288,0.0003396,86919.0,86914.0,0.241616]
[1741393540492,0.0003396,86919.0,86913.0,0.0762]
[1741393540706,0.011505,86918.0,86913.0,0.0772]
[1741393540907,0.011505,86917.0,86913.0,0.0772]
[1741393541150,0.011505,86917.0,86913.0,0.0762]
[1741393541524,0.011505,86917.0,86914.0,0.001]
[1741393541954,0.011505,86917.0,86913.0,0.0762]
[1741393541955,0.011505,86914.0,86913.0,0.0762]
[1741393542155,0.011505,86917.0,86913.0,0.0762]
[1741393542356,0.011505,86917.0,86913.0,0.0772]
[1741393542940,0.01137853,86917.0,86913.0,0.0772]
[1741393543135,0.230088,86923.0,86913.0,0.307312]
[1741393543358,0.241617,86914.0,86913.0,0.001]
[1741393543767,0.241617,86914.0,86909.0,0.0001698]
[1741393543768,0.241629,86910.0,86909.0,0.0001698]
[1741393544915,0.241629,86910.0,86909.0,0.0011698]
[1741393546293,0.011506,86910.0,86909.0,0.0011698]
[1741393546656,0.011506,86910.0,86909.0,0.0001698]
[1741393546856,0.01250605,86910.0,86909.0,0.0001698]
[1741393547544,0.011505,86914.0,86909.0,0.0001698]
[1741393547721,0.230095,86921.0,86909.0,0.0001698]
[1741393547722,0.011505,86912.0,86909.0,0.0001698]
[1741393547859,0.011505,86916.0,86909.0,0.0001698]
[1741393548086,0.0116738,86919.0,86911.0,0.230118]
[1741393548286,0.011505,86918.0,86910.0,0.011506]
[1741393548869,0.001,86914.0,86910.0,0.241629]
[1741393549458,0.001,86914.0,86911.0,0.230119]
[1741393549775,0.001,86914.0,86913.0,0.24162]
[1741393550170,0.0001698,86919.0,86913.0,0.24162]
[1741393550171,0.0001698,86919.0,86918.0,0.241606]
[1741393550306,0.0001698,86919.0,86918.0,0.357606]
[1741393551543,0.0001698,86919.0,86918.0,0.75950577]
[1741393551970,0.0001698,86919.0,86918.0,0.80930577]
[1741393553993,0.0001698,86919.0,86918.0,0.80830577]
[1741393554400,0.0001698,86919.0,86918.0,0.81030577]
[1741393554576,0.16595447,86970.0,86950.0,0.255017]
[1741393554577,6.9e-07,86951.0,86950.0,0.255017]
[1741393554771,6.9e-07,86951.0,86950.0,0.659157]
[1741393555122,6.9e-07,86951.0,86950.0,0.63439197]
[1741393555123,0.0001166,86951.0,86950.0,0.63439197]
[1741393555316,0.0001166,86951.0,86950.0,0.65939197]
[1741393555944,4e-07,86953.0,86952.0,0.291511]
[1741393556157,4e-07,86953.0,86952.0,1.22783005]
[1741393556356,4.9e-07,86977.0,86970.0,0.165498]
[1741393556582,4.9e-07,86977.0,86976.0,0.010497]
[1741393556711,4.9e-07,86977.0,86976.0,0.159737]
[1741393557522,4.9e-07,86977.0,86976.0,0.158737]
[1741393558352,0.00100049,86977.0,86976.0,0.165737]
[1741393559828,0.00100049,86977.0,86976.0,0.16528636]
[1741393560699,0.00100049,86977.0,86976.0,0.15578936]
[1741393560834,0.00100049,86977.0,86976.0,0.27170936]
[1741393561042,0.00100049,86977.0,86976.0,0.282057]
[1741393561281,0.00100049,86977.0,86976.0,0.27056]
[1741393562033,0.01249749,86977.0,86976.0,0.27056]
[1741393562496,0.01906805,86977.0,86976.0,0.15464]
[1741393562697,0.01806805,86977.0,86976.0,0.14764]
[1741393563492,0.01806805,86977.0,86976.0,0.15164]
[1741393564044,0.01806805,86977.0,86976.0,0.14764]
[1741393564194,0.01806805,86977.0,86976.0,0.14864]
[1741393564398,0.017068,86977.0,86976.0,0.14864]
[1741393565615,0.017068,86977.0,86976.0,0.14764]
[1741393566008,0.017068,86977.0,86976.0,0.14864]
[1741393567431,0.017068,86977.0,86976.0,0.14764]
[1741393568495,0.247013,86977.0,86976.0,0.14764]
[1741393568890,0.005571,86977.0,86976.0,0.14764]
[1741393569486,4.9e-07,86977.0,86976.0,0.14764]
[1741393570014,0.01149749,86977.0,86976.0,0.14764]
[1741393570495,0.00577176,86977.0,86976.0,0.14764]
[1741393570651,0.011497,86977.0,86976.0,0.39864]
[1741393570873,0.011497,86977.0,86976.0,0.3989794]
[1741393571074,0.0116667,86977.0,86976.0,0.3979794]
[1741393571281,6.071e-05,86977.0,86976.0,0.3979794]
[1741393571485,0.01255771,86977.0,86976.0,0.3979794]
[1741393572986,0.24150271,86977.0,86976.0,0.3979794]
[1741393573235,0.24250271,86977.0,86976.0,0.3979794]
[1741393573866,0.24150271,86977.0,86976.0,0.3979794]
[1741393574074,0.24250271,86977.0,86976.0,0.3979794]
[1741393574801,0.24150271,86977.0,86976.0,0.3979794]
[1741393575000,0.24250271,86977.0,86976.0,0.2503394]
[1741393576145,0.24150271,86977.0,86976.0,0.2503394]
[1741393576394,0.24250271,86977.0,86976.0,0.2503394]
[1741393577042,0.26441711,86977.0,86976.0,0.2503394]
[1741393577515,0.26541711,86977.0,86976.0,0.2503394]
[1741393577730,0.26441711,86977.0,86976.0,0.2503394]
[1741393577936,0.26441711,86977.0,86976.0,0.10684941]
[1741393578137,0.38129711,86977.0,86976.0,4.1e-07]
[1741393578332,0.50579711,86977.0,86976.0,4.1e-07]
[1741393578966,0.511169,86977.0,86976.0,4.1e-07]
[1741393580296,0.511169,86977.0,86943.0,0.00045064]
[1741393580297,0.241534,86944.0,86943.0,0.00045064]
[1741393580502,0.241536,86943.0,86942.0,0.0001166]
[1741393581106,0.24788401,86943.0,86942.0,0.0001166]
[1741393581527,0.01784901,86943.0,86942.0,0.0001166]
[1741393581684,0.00634801,86943.0,86942.0,0.0001166]
[1741393581887,0.0115,86949.0,86942.0,0.0001166]
[1741393582090,0.01786469,86948.0,86942.0,0.0001166]
[1741393582508,0.241534,86944.0,86942.0,0.0001166]
[1741393582717,0.011501,86943.0,86942.0,0.0001166]
[1741393583107,0.01784901,86943.0,86942.0,0.0001166]
[1741393583286,0.00634801,86943.0,86942.0,0.0001166]
[1741393583490,0.011501,86947.0,86942.0,0.0011166]
[1741393583911,0.011501,86943.0,86942.0,0.0011166]
[1741393584052,0.01785842,86946.0,86942.0,0.0001166]
[1741393584262,0.01250105,86945.0,86942.0,0.0011166]
[1741393584491,0.241536,86943.0,86942.0,0.0011166]
[1741393584691,0.24784715,86943.0,86942.0,0.0011166]
[1741393585910,0.24784715,86943.0,86942.0,0.0001166]
[1741393586996,0.24884715,86943.0,86942.0,0.0001166]
[1741393587524,0.24784715,86943.0,86942.0,0.0001166]
[1741393588334,0.24884715,86943.0,86942.0,0.0001166]
[1741393588658,0.01881215,86943.0,86942.0,0.0001166]
[1741393588795,0.2498472,86943.0,86942.0,0.0001166]
[1741393589005,0.24884715,86943.0,86942.0,0.0001166]
[1741393589392,0.01881215,86943.0,86942.0,0.0001166]
[1741393589567,0.24884715,86943.0,86942.0,0.0001166]
[1741393591590,0.23626842,86943.0,86942.0,0.0001166]
[1741393591836,0.24776942,86943.0,86942.0,0.0001166]
[1741393593872,0.24776942,86943.0,86942.0,0.000456]
[1741393595869,0.20909048,86944.0,86942.0,0.000456]
[1741393596073,0.24253605,86943.0,86942.0,0.000456]
[1741393596266,0.241536,86943.0,86942.0,0.000456]
[1741393598087,0.242536,86943.0,86942.0,0.000456]
[1741393601068,0.001,86943.0,86942.0,0.000456]
[1741393601268,0.001,86943.0,86942.0,0.241995]
[1741393603565,0.03863224,86948.0,86947.0,0.241526]
[1741393603767,0.03863224,86948.0,86947.0,0.357446]
[1741393603918,0.02323641,86958.0,86949.0,0.230019]
[1741393604346,0.24487493,86960.0,86954.0,0.230006]
[1741393604347,0.00884869,86960.0,86954.0,0.230006]
[1741393604547,0.02262745,86959.0,86953.0,0.0805]
[1741393606203,0.011499,86961.0,86953.0,0.0805]
[1741393608230,0.012499,86961.0,86953.0,0.0805]
[1741393609125,0.02299208,86960.0,86953.0,0.0805]
[1741393609913,0.03449108,86960.0,86953.0,0.0805]
[1741393610177,0.03925255,86963.0,86959.0,0.011499]
[1741393610287,0.03925255,86963.0,86958.0,0.229996]
[1741393610288,0.03925255,86963.0,86958.0,0.11588]
[1741393610650,0.012499,86960.0,86958.0,0.11588]
[1741393611268,0.011499,86962.0,86958.0,0.11588]
[1741393611478,0.02347671,86961.0,86958.0,0.11588]
[1741393613085,0.03497571,86961.0,86958.0,0.11588]
[1741393613288,0.03597571,86961.0,86958.0,0.11588]
[1741393614961,0.02447671,86961.0,86958.0,0.11588]
[1741393616160,0.03597571,86961.0,86958.0,0.11588]
[1741393616360,0.229983,86963.0,86958.0,0.11588]
[1741393616794,0.0001698,86961.0,86958.0,0.11588]
[1741393617359,0.0116688,86961.0,86958.0,0.11588]
[1741393617894,0.0001698,86961.0,86959.0,0.229993]
[1741393618247,0.0001698,86961.0,86960.0,0.22999]
[1741393618638,0.0001698,86961.0,86960.0,0.321989]
[1741393619692,0.0001698,86961.0,86960.0,0.323989]
[1741393620249,0.0001698,86961.0,86960.0,0.64368877]
[1741393620659,0.0011698,86961.0,86960.0,0.64968877]
[1741393622960,0.0011698,86961.0,86960.0,0.40819977]
[1741393623353,0.2426568,86961.0,86960.0,0.44353977]
[1741393624162,0.2426568,86961.0,86960.0,0.12184]
[1741393625525,0.2416568,86961.0,86960.0,0.11584]
[1741393625766,0.2416568,86961.0,86960.0,0.11984]
[1741393626295,0.0001698,86961.0,86960.0,0.11584]
[1741393626784,0.0001698,86961.0,86960.0,0.11684]
[1741393627211,0.0001698,86961.0,86960.0,0.358329]
[1741393627432,0.0001698,86961.0,86960.0,0.484629]
[1741393628237,0.0001698,86961.0,86960.0,0.24214]
[1741393628532,0.0001698,86961.0,86960.0,0.484629]
[1741393628736,0.0001698,86961.0,86960.0,0.4849684]
[1741393628972,0.0001698,86961.0,86960.0,0.2434794]
[1741393629202,0.0001698,86961.0,86960.0,0.2424794]
[1741393629484,0.0001698,86961.0,86960.0,0.4744694]
[1741393629636,0.0001698,86961.0,86960.0,0.4859684]
[1741393629989,0.0001698,86961.0,86960.0,0.4839684]
[1741393631507,0.2301578,86961.0,86960.0,0.1986794]
[1741393631650,0.0001698,86961.0,86960.0,0.1201794]
[1741393631844,0.0001698,86961.0,86960.0,0.3576684]
[1741393632055,0.0001698,86961.0,86960.0,0.1201794]
[1741393632726,0.0001698,86961.0,86960.0,0.1161794]
[1741393632854,0.0001698,86961.0,86960.0,0.1201794]
[1741393634082,0.0001698,86961.0,86960.0,0.3501694]
[1741393634316,0.0001698,86961.0,86960.0,0.3576684]
[1741393634716,0.0001698,86961.0,86960.0,0.3606684]
[1741393635153,0.0001698,86961.0,86960.0,0.3576684]
[1741393635362,0.0001698,86961.0,86960.0,0.0003394]
[1741393635569,0.2416568,86961.0,86960.0,0.0033394]
[1741393636099,0.0116688,86961.0,86960.0,0.0003394]
[1741393636306,0.0001698,86961.0,86960.0,0.0053394]
[1741393636820,0.0116688,86961.0,86960.0,0.0053394]
[1741393637298,0.0001698,86961.0,86960.0,0.0053394]
[1741393637660,0.0001698,86961.0,86960.0,0.1161394]
[1741393638006,0.0001698,86961.0,86960.0,0.1191394]
[1741393638207,0.0116688,86961.0,86960.0,0.1191394]
[1741393638543,0.0116688,86961.0,86960.0,0.1161394]
[1741393638948,0.0116688,86961.0,86960.0,0.1201394]
[1741393639374,0.0116688,86961.0,86960.0,0.1161394]
[1741393640530,0.2416568,86961.0,86960.0,0.1161394]
[1741393640734,0.0116688,86961.0,86960.0,0.1201394]
[1741393641089,0.0001698,86961.0,86960.0,0.1201394]
[1741393641453,0.0001698,86961.0,86960.0,0.4424284]
[1741393641592,0.0001698,86961.0,86960.0,0.2009394]
[1741393641835,0.0001698,86961.0,86960.0,0.43207922]
[1741393642036,0.0001698,86961.0,86960.0,0.4309294]
[1741393642245,0.0001698,86961.0,86960.0,0.2009394]
[1741393642566,0.0001698,86961.0,86960.0,0.20208922]
[1741393642965,0.0001698,86961.0,86960.0,0.2009394]
[1741393644212,0.0001698,86961.0,86960.0,0.4424284]
[1741393644352,0.0001698,86961.0,86960.0,0.2009394]
[1741393644766,0.0001698,86961.0,86960.0,0.43207922]
[1741393644965,0.0001698,86961.0,86960.0,0.4309294]
[1741393645554,0.0001698,86961.0,86960.0,0.2009394]
[1741393645755,0.0001698,86961.0,86960.0,0.20208921]
[1741393646212,0.0001698,86961.0,86960.0,0.43207921]
[1741393646443,0.0001698,86961.0,86960.0,0.2009394]
[1741393646575,0.0001698,86961.0,86960.0,0.20208922]
[1741393647176,0.0001698,86961.0,86960.0,0.44357822]
[1741393647376,0.0001698,86961.0,86960.0,0.4424284]
[1741393647577,0.0001698,86961.0,86960.0,0.76412817]
[1741393647780,0.0001698,86961.0,86960.0,0.83482817]
[1741393647994,0.0001698,86961.0,86960.0,1.36882817]
[1741393648407,0.0001698,86961.0,86960.0,1.41608282]
[1741393648608,8e-07,86961.0,86960.0,1.41208282]
[1741393648789,0.0001697,86967.0,86966.0,0.362772]
[1741393650824,0.0001697,86967.0,86966.0,0.369772]
[1741393651027,0.0001697,86967.0,86966.0,1.22547177]
[1741393652681,7e-07,86967.0,86966.0,1.80403177]
[1741393652879,6.071e-05,86977.0,86976.0,0.362745]
[1741393653027,6.071e-05,86977.0,86976.0,0.80024477]
[1741393654156,0.00013232,86977.0,86976.0,0.80724477]
[1741393655789,3.2e-07,86977.0,86976.0,0.80724477]
[1741393656012,3.2e-07,86977.0,86976.0,0.80737675]
[1741393656416,3.2e-07,86977.0,86976.0,0.80037675]
[1741393656758,3.2e-07,86977.0,86976.0,1.33437675]
[1741393656952,3.2e-07,86977.0,86976.0,1.33424477]
[1741393657155,3.2e-07,86977.0,86976.0,1.35924477]
[1741393657600,3.2e-07,86977.0,86976.0,1.39124477]
[1741393658922,0.0052898,86988.0,86987.0,0.317014]
[1741393659178,0.0052898,86988.0,86987.0,0.580334]
[1741393660268,0.0052898,86988.0,86987.0,0.587334]
[1741393661275,0.0052898,86988.0,86987.0,0.471574]
[1741393661835,0.0052898,86988.0,86987.0,0.511734]
[1741393662579,0.0052898,86988.0,86987.0,0.83343345]
[1741393665715,0.12894043,87010.0,87001.0,0.229881]
[1741393665918,0.00038918,87010.0,87005.0,0.229871]
[1741393666114,0.00038918,87010.0,87006.0,0.229868]
[1741393666327,0.00038918,87010.0,87005.0,0.229871]
[1741393666525,0.00038918,87010.0,87004.0,0.011493]
[1741393666526,0.04817343,87010.0,87006.0,0.229869]
[1741393666979,0.04817343,87010.0,87004.0,0.011493]
[1741393667176,0.04817343,87010.0,87005.0,0.241364]
[1741393667385,0.04817343,87010.0,87005.0,0.011493]
[1741393667614,0.04817343,87010.0,87006.0,0.229868]
[1741393667809,0.04817343,87010.0,87006.0,0.001]
[1741393668016,0.241359,87007.0,87006.0,0.001]
[1741393669186,0.368259,87007.0,87006.0,0.001]
[1741393669398,0.1269,87007.0,86980.0,0.32169945]
[1741393669600,0.241411,86988.0,86980.0,0.32169945]
[1741393669798,0.241411,86988.0,86987.0,0.26328]
[1741393670099,0.011495,86988.0,86987.0,0.14756]
[1741393670302,0.011495,86994.0,86987.0,0.377479]
[1741393670505,0.011495,86991.0,86987.0,0.14756]
[1741393670725,0.011495,86994.0,86988.0,0.229916]
[1741393670926,0.011495,86994.0,86989.0,0.229913]
[1741393671529,0.011494,86996.0,86991.0,0.229908]
[1741393672150,0.011493,87003.0,86991.0,0.011495]
[1741393672395,0.011494,86998.0,86991.0,0.241402]
[1741393672746,0.011495,86992.0,86987.0,0.14756]
[1741393672991,0.011495,86989.0,86987.0,0.15056]
[1741393673296,0.241411,86988.0,86987.0,0.15056]
[1741393673462,0.011495,86988.0,86987.0,0.14756]
[1741393673662,0.241411,86988.0,86987.0,0.14756]
[1741393674402,0.011495,86988.0,86987.0,0.14756]
[1741393674776,0.241411,86988.0,86987.0,0.14756]
[1741393675184,0.011495,86988.0,86987.0,0.14756]
[1741393675381,0.241411,86988.0,86987.0,0.14756]
[1741393675581,0.241411,86988.0,86987.0,0.15056]
[1741393675790,0.011495,86988.0,86987.0,0.15056]
[1741393676196,0.011495,86988.0,86987.0,0.14756]
[1741393676622,0.011495,86988.0,86987.0,0.14956]
[1741393676783,0.1794812,86992.0,86987.0,0.14956]
[1741393676982,0.18048125,86992.0,86987.0,0.14956]
[1741393677196,0.229884,87001.0,86987.0,0.14956]
[1741393677400,0.229894,86997.0,86987.0,0.3798174]
[1741393677637,0.229894,86997.0,86987.0,0.1498994]
[1741393678057,0.011494,86996.0,86987.0,0.1498994]
[1741393678260,0.241389,86996.0,86987.0,0.1613944]
[1741393678563,0.011495,86994.0,86987.0,0.3893124]
[1741393678894,0.011495,86991.0,86987.0,0.1488994]
[1741393679232,0.011495,86991.0,86987.0,0.1478994]
[1741393680336,0.011495,86991.0,86987.0,0.1488994]
[1741393680548,0.011495,86992.0,86987.0,0.1488994]
[1741393680756,0.011495,86993.0,86987.0,0.1603944]
[1741393680982,0.07399493,86997.0,86988.0,0.229914]
[1741393681184,0.011494,86999.0,86992.0,0.229904]
[1741393681385,0.011494,86998.0,86992.0,0.229904]
[1741393681592,0.011494,86998.0,86991.0,0.229908]
[1741393681790,0.011494,86995.0,86988.0,0.229916]
[1741393682506,0.011495,86993.0,86987.0,0.1478994]
[1741393682706,0.241411,86988.0,86987.0,0.1478994]
[1741393683111,0.011495,86988.0,86987.0,0.1478994]
[1741393683870,0.011495,86991.0,86987.0,0.1478994]
[1741393684315,0.011495,86990.0,86987.0,0.1478994]
[1741393684508,0.011495,86988.0,86987.0,0.1478994]
[1741393684714,0.011495,86990.0,86987.0,0.1478994]
[1741393684944,0.011495,86988.0,86987.0,0.0003394]
[1741393685136,0.241411,86988.0,86987.0,0.0003394]
[1741393685343,0.288211,86988.0,86987.0,0.0003394]
[1741393685564,0.288211,86988.0,86987.0,0.0013394]
[1741393686047,0.288211,86988.0,86987.0,0.0003394]
[1741393686396,0.288211,86988.0,86987.0,0.0023394]
[1741393686816,0.288211,86988.0,86987.0,0.0003394]
[1741393689381,0.31162014,86988.0,86987.0,0.0003394]
[1741393692692,0.31262014,86988.0,86987.0,0.0003394]
[1741393693098,0.22997,86968.0,86966.0,0.0003396]
[1741393693297,0.24247005,86967.0,86966.0,0.0003396]
[1741393693661,0.24147,86967.0,86966.0,0.0003396]
[1741393694526,0.24147,86967.0,86966.0,0.00041121]
[1741393695494,0.28803898,86967.0,86966.0,0.00541121]
[1741393695920,0.28803898,86967.0,86966.0,0.00041121]
[1741393696379,0.28803898,86967.0,86966.0,0.00241121]
[1741393696980,0.28803898,86967.0,86966.0,0.00041121]
[1741393697190,0.33583898,86967.0,86966.0,0.00041121]
[1741393698330,0.41383898,86967.0,86966.0,0.00041121]
[1741393700209,0.011501,86945.0,86944.0,0.0003396]
[1741393700471,0.24253105,86945.0,86944.0,0.0003396]
[1741393700745,0.241531,86945.0,86944.0,0.0003396]
[1741393702567,0.011501,86945.0,86944.0,0.0003396]
[1741393702721,0.23103005,86945.0,86944.0,0.0003396]
[1741393702924,0.23003,86945.0,86944.0,0.0003396]
[1741393703939,0.241531,86945.0,86944.0,0.0003396]
[1741393704144,0.26456163,86945.0,86944.0,0.0003396]
[1741393708083,0.25306063,86945.0,86944.0,0.0003396]
[1741393708384,0.26456163,86945.0,86944.0,0.0003396]
[1741393712142,0.230027,86946.0,86944.0,0.0003396]
[1741393712344,0.23103005,86945.0,86944.0,0.0003396]
[1741393712502,0.23003,86945.0,86944.0,0.0003396]
[1741393712707,0.241531,86945.0,86944.0,0.0003396]
[1741393713115,0.26473908,86945.0,86944.0,0.0003396]
[1741393713741,0.26573908,86945.0,86944.0,0.0003396]
[1741393714261,0.26473908,86945.0,86944.0,0.0003396]
[1741393715079,0.26573908,86945.0,86944.0,0.0003396]
[1741393717305,0.00254456,86945.0,86944.0,0.0003396]
[1741393717512,0.23357461,86945.0,86944.0,0.0003396]
[1741393717712,0.23257456,86945.0,86944.0,0.0003396]
[1741393718139,0.24407556,86945.0,86944.0,0.0003396]
[1741393719006,0.24407556,86945.0,86929.0,0.1476]
[1741393719007,0.241536,86943.0,86929.0,0.1476]
[1741393719356,0.241536,86943.0,86942.0,0.000456]
[1741393720280,0.25957826,86943.0,86942.0,0.000456]
[1741393721229,0.26057826,86943.0,86942.0,0.000456]
[1741393723372,0.01904226,86943.0,86942.0,0.000456]
[1741393723575,0.230033,86944.0,86942.0,0.000456]
[1741393723576,0.01338166,86944.0,86942.0,0.000456]
[1741393723766,0.241536,86943.0,86942.0,0.000456]
[1741393726808,0.242536,86943.0,86942.0,0.000456]
[1741393727008,0.26057821,86943.0,86942.0,0.000456]
[1741393731287,0.26057821,86943.0,86942.0,0.078656]
[1741393735234,0.26057821,86943.0,86942.0,0.000456]
[1741393735683,0.241553,86937.0,86936.0,0.10811349]
[1741393738802,0.25959488,86937.0,86936.0,0.10811349]
[1741393739399,0.02954388,86937.0,86936.0,0.10811349]
[1741393739631,0.01804188,86937.0,86936.0,0.34966949]
[1741393742678,0.01804188,86937.0,86936.0,0.35366949]
[1741393747586,0.01804188,86937.0,86936.0,0.11211349]
[1741393747764,0.01804188,86937.0,86936.0,0.34216749]
[1741393748315,0.01804188,86937.0,86936.0,0.22787349]
[1741393748775,0.01804188,86937.0,86936.0,0.22387349]
[1741393749001,0.01804188,86937.0,86936.0,0.22721329]
[1741393749511,0.01804188,86937.0,86936.0,0.22421329]
[1741393749850,0.01804188,86937.0,86936.0,0.22621329]
[1741393750072,0.241553,86937.0,86936.0,0.0023398]
[1741393750481,0.241553,86937.0,86936.0,0.0003398]
[1741393752461,0.241553,86937.0,86936.0,0.0033398]
[1741393752835,0.241553,86937.0,86936.0,0.0003398]
[1741393753057,0.2595955,86937.0,86936.0,0.0023398]
[1741393756023,0.011504,86922.0,86920.0,0.24773625]
[1741393756440,0.011502,86936.0,86920.0,0.24773625]
[1741393756651,0.011503,86931.0,86922.0,0.230089]
[1741393756826,0.01804372,86925.0,86922.0,0.230089]
[1741393757027,0.01804372,86925.0,86920.0,0.48933625]
[1741393757245,0.001,86922.0,86920.0,0.48483225]
[1741393757450,0.001,86922.0,86920.0,0.25473625]
[1741393759519,0.011504,86924.0,86920.0,0.24773625]
[1741393759976,0.011504,86924.0,86922.0,0.005]
[1741393760384,0.011504,86924.0,86920.0,0.24773625]
[1741393760800,0.011504,86924.0,86920.0,0.25173625]
[1741393761329,0.011504,86924.0,86920.0,0.24773625]
[1741393762131,0.011504,86924.0,86922.0,0.0003398]
[1741393763108,0.05876542,86925.0,86922.0,0.0003398]
[1741393763320,0.05876542,86925.0,86922.0,0.0033398]
[1741393763716,0.05876542,86925.0,86924.0,0.230086]
[1741393763927,0.05876542,86925.0,86923.0,0.230087]
[1741393764297,0.05876542,86925.0,86924.0,0.313286]
[1741393764465,0.01804372,86925.0,86924.0,0.32479]
[1741393766623,0.0001699,86942.0,86924.0,0.24159]
[1741393766825,0.0001699,86942.0,86936.0,0.0832]
[1741393766953,0.0001699,86942.0,86938.0,0.230046]
[1741393767160,0.0001699,86942.0,86937.0,0.345811]
[1741393767582,0.0401919,86942.0,86937.0,0.11576]
[1741393767784,0.0401919,86942.0,86931.0,0.230065]
[1741393767785,0.230049,86938.0,86924.0,0.002]
[1741393767986,0.241587,86925.0,86924.0,0.002]
[1741393768166,0.241587,86925.0,86923.0,0.11572]
[1741393768387,0.011504,86924.0,86923.0,0.11572]
[1741393769672,0.02954728,86924.0,86923.0,0.11572]
[1741393770495,0.02954728,86924.0,86923.0,0.11672]
[1741393770912,0.02954728,86924.0,86923.0,0.11572]
[1741393771296,0.02954728,86924.0,86923.0,0.11672]
[1741393771649,0.01804328,86924.0,86923.0,0.11672]
[1741393772629,0.01804328,86924.0,86923.0,0.11572]
[1741393773152,0.02315023,86924.0,86923.0,0.11772]
[1741393773932,0.01804328,86924.0,86923.0,0.11772]
[1741393774131,0.01804328,86924.0,86923.0,0.1180598]
[1741393774472,0.01804328,86924.0,86923.0,0.3596518]
[1741393775031,0.01804328,86924.0,86923.0,0.3481478]
[1741393775280,0.01804328,86924.0,86923.0,0.1180598]
[1741393776157,0.25963328,86924.0,86923.0,0.0023398]
[1741393776556,0.26471783,86924.0,86923.0,0.0023398]
[1741393776812,0.25963328,86924.0,86923.0,0.0023398]
[1741393777372,0.25963328,86924.0,86923.0,0.0003398]
[1741393777818,0.25963328,86924.0,86923.0,0.0013398]
[1741393779084,0.25963328,86924.0,86923.0,0.0003398]
[1741393785990,0.24259,86924.0,86923.0,0.0003398]
[1741393786194,0.25107077,86924.0,86923.0,0.0003398]
[1741393786393,0.33077077,86924.0,86923.0,0.0003398]
[1741393788934,0.34881744,86924.0,86923.0,0.0003398]
[1741393789297,0.34981744,86924.0,86923.0,0.0003398]
[1741393790047,0.34881744,86924.0,86923.0,0.0003398]
[1741393790435,0.230083,86925.0,86923.0,0.0003398]
[1741393790615,0.230086,86924.0,86923.0,0.0003398]
[1741393790821,0.011504,86924.0,86923.0,0.0003398]
[1741393791574,0.01804593,86925.0,86923.0,0.0003398]
[1741393791916,0.01804593,86925.0,86924.0,0.076]
[1741393792117,0.01804593,86925.0,86924.0,0.306086]
[1741393792322,0.10266792,86926.0,86925.0,0.230083]
[1741393792525,0.10266792,86926.0,86924.0,0.076]
[1741393792775,0.001,86925.0,86924.0,0.076]
[1741393793253,0.10266792,86926.0,86924.0,0.306086]
[1741393794228,0.10266792,86926.0,86924.0,0.076]
[1741393794427,0.11417192,86926.0,86924.0,0.076]
[1741393794660,0.011504,86926.0,86924.0,0.076]
[1741393794860,0.011503,86928.0,86924.0,0.076]
[1741393795434,0.02954679,86928.0,86924.0,0.076]
[1741393797989,0.011503,86932.0,86924.0,0.078]
[1741393798199,0.011503,86932.0,86924.0,0.07915031]
[1741393798398,0.0180438,86930.0,86924.0,0.07915031]
[1741393798596,0.0180438,86930.0,86924.0,0.078]
[1741393798850,0.011503,86928.0,86924.0,0.076]
[1741393799292,0.011503,86928.0,86924.0,0.077]
[1741393799672,0.0180438,86930.0,86924.0,0.077]
[1741393799673,0.0180438,86930.0,86924.0,0.076]
[1741393800035,0.0180438,86930.0,86924.0,0.078]
[1741393800441,0.0180438,86930.0,86928.0,0.230075]
[1741393800648,0.0180438,86930.0,86925.0,0.241585]
[1741393800874,0.0180438,86930.0,86925.0,0.230081]
[1741393801837,0.0180438,86930.0,86926.0,0.23008]
[1741393802023,0.001256,86926.0,86924.0,0.078]
[1741393802188,0.001256,86926.0,86924.0,0.076]
[1741393802558,0.001256,86926.0,86923.0,0.0003398]
[1741393802559,0.24159,86924.0,86923.0,0.0003398]
[1741393805240,0.02012545,86924.0,86923.0,0.0033398]
[1741393805441,0.24159,86924.0,86923.0,0.0033398]
[1741393805591,0.24159,86924.0,86923.0,0.0003398]
[1741393806968,0.58443555,86924.0,86923.0,0.0003398]
[1741393807626,0.59325784,86924.0,86923.0,0.0003398]
[1741393808036,0.31695784,86924.0,86923.0,0.0003398]
[1741393808175,0.26845784,86924.0,86923.0,0.0013398]
[1741393808613,0.26845784,86924.0,86923.0,0.0003398]
[1741393808831,0.01904555,86924.0,86923.0,0.2304278]